bitfinex/quotes_BTCUSD_20241130
["timestamp","ask_amount","ask_price","bid_price","bid_amount"]
[1732979394260,0.18597142,96632.0,96631.0,0.41575793]
[1732979394488,0.18597142,96632.0,96631.0,0.13754431]
[1732979394739,0.10357142,96632.0,96631.0,0.13754431]
[1732979395720,0.10357142,96632.0,96631.0,0.41575793]
[1732979395721,0.1054021,96632.0,96631.0,0.41575793]
[1732979395973,0.1054021,96632.0,96631.0,0.13754431]
[1732979400707,0.10357142,96632.0,96631.0,0.13754431]
[1732979404643,8.642e-05,96632.0,96631.0,0.13754431]
[1732979405326,0.10357142,96632.0,96631.0,0.13754431]
[1732979405554,8.642e-05,96632.0,96631.0,0.13754431]
[1732979406272,0.103482,96635.0,96632.0,0.023]
[1732979406528,0.103482,96635.0,96634.0,0.023]
[1732979406762,0.103482,96635.0,96634.0,0.12584521]
[1732979407009,0.103482,96635.0,96634.0,0.17404521]
[1732979407239,0.103479,96638.0,96634.0,0.18386125]
[1732979407507,0.206947,96643.0,96636.0,0.023]
[1732979407744,0.10348,96637.0,96636.0,0.023]
[1732979407980,0.51735,96646.0,96641.0,0.023]
[1732979408203,0.103474,96642.0,96641.0,0.023]
[1732979408955,0.10348,96637.0,96635.0,0.023]
[1732979409186,0.02233377,96647.0,96635.0,0.023]
[1732979409436,0.0017268,96647.0,96644.0,0.41111]
[1732979409706,0.0017268,96647.0,96646.0,0.10347]
[1732979409948,0.0017268,96647.0,96646.0,0.023]
[1732979410464,0.0017268,96647.0,96646.0,0.22931521]
[1732979410721,0.0017268,96647.0,96646.0,0.22905596]
[1732979411195,0.0017268,96647.0,96646.0,0.23883637]
[1732979411435,0.0017268,96647.0,96646.0,0.23983637]
[1732979411704,0.0017268,96647.0,96646.0,0.36243637]
[1732979411961,0.0017268,96647.0,96646.0,0.3950755]
[1732979412188,0.0017268,96647.0,96646.0,0.36443637]
[1732979413396,0.0017268,96647.0,96646.0,0.36243637]
[1732979413608,0.0017268,96647.0,96646.0,0.37043637]
[1732979414070,0.0017268,96647.0,96646.0,0.36643637]
[1732979414289,0.0017268,96647.0,96646.0,0.37343637]
[1732979416902,0.0017268,96647.0,96646.0,0.38449553]
[1732979419024,0.0017268,96647.0,96646.0,1.88449553]
[1732979419535,0.0017268,96647.0,96646.0,1.89449553]
[1732979421160,0.0017268,96647.0,96646.0,0.39449553]
[1732979421677,0.0017268,96647.0,96646.0,0.54449553]
[1732979421928,0.0017268,96647.0,96646.0,0.57508961]
[1732979423289,0.0017268,96647.0,96646.0,2.07508961]
[1732979423989,0.0017268,96647.0,96646.0,2.07108961]
[1732979424242,0.0017268,96647.0,96646.0,2.06408961]
[1732979424695,0.0017268,96647.0,96646.0,2.06808961]
[1732979424814,0.0017268,96647.0,96646.0,2.07508961]
[1732979425463,0.0017268,96647.0,96646.0,2.07595301]
[1732979427801,0.0017268,96647.0,96646.0,2.04535893]
[1732979428254,0.0017268,96647.0,96646.0,0.40914818]
[1732979428469,0.0017268,96647.0,96646.0,0.28554818]
[1732979428470,0.1051958,96647.0,96646.0,0.28554818]
[1732979428695,0.0017268,96647.0,96646.0,0.7989172]
[1732979428914,0.0017268,96647.0,96646.0,0.798929]
[1732979429138,0.0017268,96647.0,96646.0,0.38901818]
[1732979429569,0.0017268,96647.0,96646.0,0.41201818]
[1732979429820,0.0017268,96647.0,96646.0,0.46041818]
[1732979431161,0.0017268,96647.0,96646.0,0.30854818]
[1732979431382,0.0017268,96647.0,96646.0,0.31372345]
[1732979431606,0.0017268,96647.0,96646.0,0.41719345]
[1732979434073,0.0017268,96647.0,96646.0,0.31372345]
[1732979434531,0.0017268,96647.0,96646.0,0.41719345]
[1732979434776,0.0017268,96647.0,96646.0,0.31372345]
[1732979437091,0.0017268,96647.0,96646.0,0.41719345]
[1732979437321,0.0017268,96647.0,96646.0,0.31372345]
[1732979439598,0.0017268,96647.0,96646.0,0.34438415]
[1732979440510,0.0017268,96647.0,96646.0,0.44785415]
[1732979443557,0.0017268,96647.0,96646.0,0.58265415]
[1732979444016,0.0017268,96647.0,96646.0,2.08265415]
[1732979447552,0.0017268,96647.0,96646.0,0.58265415]
[1732979448236,0.0017268,96647.0,96646.0,0.89542685]
[1732979449140,0.0017268,96647.0,96646.0,0.77062685]
[1732979449349,0.0017268,96647.0,96646.0,0.45785415]
[1732979452005,0.0017268,96647.0,96646.0,0.50585415]
[1732979452213,0.0017268,96647.0,96646.0,2.08265415]
[1732979452655,0.00015321,96647.0,96646.0,2.08265415]
[1732979453309,0.1051724,96668.0,96660.0,0.023]
[1732979453310,0.103447,96667.0,96660.0,0.023]
[1732979453521,0.103447,96667.0,96666.0,0.12584521]
[1732979453765,0.1051724,96668.0,96667.0,0.023]
[1732979453983,0.1051724,96668.0,96667.0,0.12584521]
[1732979454193,0.1051724,96668.0,96667.0,0.14080206]
[1732979454407,0.00190556,96668.0,96667.0,0.14080206]
[1732979455496,0.10535156,96668.0,96667.0,0.14080206]
[1732979455702,0.15335156,96668.0,96667.0,0.14080206]
[1732979455919,0.23055156,96668.0,96667.0,0.14080206]
[1732979456123,0.23055156,96668.0,96667.0,0.14180206]
[1732979457175,0.23055156,96668.0,96667.0,0.14480206]
[1732979459220,0.10535156,96668.0,96667.0,0.14480206]
[1732979459729,0.10535156,96668.0,96667.0,0.15561708]
[1732979463395,0.23055156,96668.0,96667.0,0.15561708]
[1732979464712,0.23055156,96668.0,96667.0,0.14480206]
[1732979465114,0.23055156,96668.0,96667.0,0.12180206]
[1732979465485,0.23055156,96668.0,96667.0,0.10684521]
[1732979466877,0.23055156,96668.0,96667.0,0.12984521]
[1732979467320,0.23055156,96668.0,96667.0,0.14478273]
[1732979473931,0.00190556,96668.0,96667.0,0.14478273]
[1732979476169,0.00190556,96668.0,96667.0,0.17547832]
[1732979476397,0.00190556,96668.0,96667.0,0.14478273]
[1732979476602,0.00190556,96668.0,96667.0,0.17148208]
[1732979476806,0.00190556,96668.0,96667.0,0.17348208]
[1732979477256,0.00190556,96668.0,96667.0,0.14278273]
[1732979477469,0.00190556,96668.0,96667.0,0.14678273]
[1732979478141,0.10535156,96668.0,96667.0,0.14678273]
[1732979478354,0.00190556,96668.0,96667.0,0.14678273]
[1732979479679,0.00190556,96668.0,96667.0,0.25206052]
[1732979479933,0.00190556,96668.0,96667.0,0.25022973]
[1732979480447,0.00190556,96668.0,96667.0,0.43091935]
[1732979480948,0.00190556,96668.0,96667.0,0.51411935]
[1732979481444,0.00190556,96668.0,96667.0,0.5252219]
[1732979482352,0.00190556,96668.0,96667.0,0.5352219]
[1732979482822,0.00190556,96668.0,96667.0,2.0352219]
[1732979484516,0.00190556,96668.0,96667.0,2.00453228]
[1732979484979,0.00190556,96668.0,96667.0,0.50453228]
[1732979485213,0.00190556,96668.0,96667.0,0.5351377]
[1732979486177,0.00190556,96668.0,96667.0,0.5251377]
[1732979486408,0.00190556,96668.0,96667.0,0.5351377]
[1732979486882,0.00190556,96668.0,96667.0,0.5251377]
[1732979487323,0.00190556,96668.0,96667.0,0.5351377]
[1732979487738,0.00190556,96668.0,96667.0,0.5251377]
[1732979488232,0.00190556,96668.0,96667.0,0.4419377]
[1732979490928,0.00190556,96668.0,96667.0,0.41133228]
[1732979491829,0.00190556,96668.0,96667.0,0.44197273]
[1732979492052,0.00190556,96668.0,96667.0,0.49187273]
[1732979492528,0.00190556,96668.0,96667.0,1.99187273]
[1732979495039,0.00190556,96668.0,96667.0,0.44197273]
[1732979495789,0.00190556,96668.0,96667.0,0.41133228]
[1732979496054,0.00190556,96668.0,96667.0,0.44196841]
[1732979501391,0.00190556,96668.0,96667.0,1.94196841]
[1732979503587,0.00190556,96668.0,96667.0,1.83852141]
[1732979503841,0.00190556,96668.0,96667.0,1.94196841]
[1732979504295,0.00190556,96668.0,96667.0,1.83852141]
[1732979504513,0.00190556,96668.0,96667.0,0.44196841]
[1732979504730,0.00190556,96668.0,96667.0,0.75487731]
[1732979504942,0.00190556,96668.0,96667.0,2.25487731]
[1732979505162,0.15375156,96668.0,96667.0,0.13488528]
[1732979506694,0.15175156,96668.0,96667.0,0.15788528]
[1732979506914,0.0484,96668.0,96667.0,0.15788528]
[1732979507153,0.0501272,96668.0,96667.0,0.15788528]
[1732979507379,0.0501272,96668.0,96667.0,0.15388528]
[1732979507595,0.1535732,96668.0,96667.0,0.15488528]
[1732979507809,0.1535732,96668.0,96667.0,0.15288528]
[1732979508033,0.1535732,96668.0,96667.0,1.15388528]
[1732979508703,0.1535732,96668.0,96667.0,1.15288528]
[1732979509184,0.1535732,96668.0,96667.0,1.15388528]
[1732979509669,0.1051732,96668.0,96667.0,1.15388528]
[1732979511695,0.1051732,96668.0,96667.0,1.18457574]
[1732979512148,0.1051732,96668.0,96667.0,1.15388528]
[1732979514233,0.1051732,96668.0,96667.0,1.14278273]
[1732979518877,0.1051732,96668.0,96667.0,1.14364623]
[1732979522859,0.1051732,96668.0,96667.0,1.1546007]
[1732979523899,0.1051732,96668.0,96667.0,1.1536007]
[1732979524945,0.1051732,96668.0,96667.0,1.1526007]
[1732979525154,0.1051732,96668.0,96667.0,1.14164623]
[1732979531032,0.1051732,96668.0,96667.0,1.14264623]
[1732979531734,0.0017272,96668.0,96667.0,1.14264623]
[1732979531942,0.0017272,96668.0,96667.0,2.64464623]
[1732979532776,0.0017272,96668.0,96667.0,1.14464623]
[1732979532992,0.1051732,96668.0,96667.0,1.14464623]
[1732979533222,0.0017272,96668.0,96667.0,1.14464623]
[1732979533882,0.1051732,96668.0,96667.0,1.14464623]
[1732979537666,0.2295732,96668.0,96667.0,1.14464623]
[1732979543300,0.1814732,96668.0,96667.0,1.14464623]
[1732979543923,0.1051732,96668.0,96667.0,1.14464623]
[1732979548470,0.1051732,96668.0,96667.0,1.12164623]
[1732979548471,0.22820388,96668.0,96667.0,1.12164623]
[1732979548682,0.2263732,96668.0,96667.0,1.12164623]
[1732979549107,0.2263732,96668.0,96667.0,1.11964623]
[1732979549323,0.2263732,96668.0,96667.0,1.11864623]
[1732979549533,0.2263732,96668.0,96667.0,1.53064451]
[1732979550215,0.2263732,96668.0,96667.0,1.53364451]
[1732979551080,0.2263732,96668.0,96667.0,1.12164623]
[1732979551811,0.2263732,96668.0,96667.0,1.11964623]
[1732979552050,0.2263732,96668.0,96667.0,1.12264623]
[1732979559038,0.2468316,96668.0,96667.0,1.12264623]
[1732979561471,0.2263732,96668.0,96667.0,1.12264623]
[1732979566423,0.2263732,96668.0,96667.0,1.01980102]
[1732979567825,0.24730691,96668.0,96667.0,1.01980102]
[1732979568564,0.12610691,96668.0,96667.0,1.14564623]
[1732979571523,0.1051732,96668.0,96667.0,1.14564623]
[1732979573656,0.0017272,96668.0,96667.0,1.22244623]
[1732979574606,0.1051732,96668.0,96667.0,1.22244623]
[1732979574830,0.0017272,96668.0,96667.0,1.22244623]
[1732979575071,0.1051732,96668.0,96667.0,1.22144623]
[1732979575306,0.0017272,96668.0,96667.0,1.22144623]
[1732979575973,0.0017272,96668.0,96667.0,1.21844623]
[1732979576252,0.0017272,96668.0,96667.0,1.21944623]
[1732979576492,0.0017272,96668.0,96667.0,1.22144623]
[1732979576930,0.0017272,96668.0,96667.0,1.21944623]
[1732979579203,0.0017272,96668.0,96667.0,1.32289323]
[1732979579411,0.0017272,96668.0,96667.0,1.21944623]
[1732979580812,0.1051732,96668.0,96667.0,1.14264623]
[1732979581072,0.1051732,96668.0,96667.0,1.11964623]
[1732979581804,0.1051732,96668.0,96667.0,1.13076445]
[1732979582022,0.1051732,96668.0,96667.0,1.12976445]
[1732979582241,0.1051732,96668.0,96667.0,1.15276445]
[1732979582898,0.1051732,96668.0,96667.0,1.15676445]
[1732979583549,0.1051732,96668.0,96667.0,1.15576445]
[1732979583780,0.1051732,96668.0,96667.0,1.15676445]
[1732979585641,0.1051732,96668.0,96667.0,1.14464623]
[1732979586086,0.1051732,96668.0,96667.0,1.14564623]
[1732979586533,0.1051732,96668.0,96667.0,1.14464623]
[1732979586751,0.1051732,96668.0,96667.0,1.14564623]
[1732979589359,0.1051732,96668.0,96667.0,1.14264623]
[1732979589559,0.0017272,96668.0,96667.0,2.64464623]
[1732979589790,0.0017272,96668.0,96667.0,2.77584623]
[1732979590008,0.1051732,96668.0,96667.0,2.77284623]
[1732979590241,0.1051732,96668.0,96667.0,2.77484623]
[1732979590718,0.1051732,96668.0,96667.0,1.27484623]
[1732979591436,0.1051732,96668.0,96667.0,1.14464623]
[1732979591678,0.1051732,96668.0,96667.0,1.14164623]
[1732979591907,0.1051732,96668.0,96667.0,1.14364623]
[1732979592152,0.1051732,96668.0,96667.0,1.14464623]
[1732979592611,0.1051732,96668.0,96667.0,1.14264623]
[1732979592867,0.1051732,96668.0,96667.0,1.14464623]
[1732979597553,0.1051732,96668.0,96667.0,1.55647821]
[1732979598515,0.1051732,96668.0,96667.0,1.14464623]
[1732979600202,0.1051732,96668.0,96667.0,1.14164623]
[1732979600711,0.1051732,96668.0,96667.0,1.14564623]
[1732979601894,0.1051732,96668.0,96667.0,1.19194623]
[1732979602138,0.1051732,96668.0,96667.0,1.19494623]
[1732979602352,0.1051732,96668.0,96667.0,1.19094623]
[1732979602566,0.1051732,96668.0,96667.0,1.18794623]
[1732979602781,0.1051732,96668.0,96667.0,1.18894623]
[1732979603029,0.1051732,96668.0,96667.0,1.18994623]
[1732979603266,0.1051732,96668.0,96667.0,1.18894623]
[1732979603482,0.1051732,96668.0,96667.0,1.19094623]
[1732979604349,0.1051732,96668.0,96667.0,1.18894623]
[1732979604565,0.1051732,96668.0,96667.0,1.18794623]
[1732979605001,0.1051732,96668.0,96667.0,1.18894623]
[1732979605430,0.1051732,96668.0,96667.0,1.18794623]
[1732979605743,0.1051732,96668.0,96667.0,1.18994623]
[1732979606015,0.1051732,96668.0,96667.0,1.18894623]
[1732979606499,0.1051732,96668.0,96667.0,1.19194623]
[1732979607218,0.1051732,96668.0,96667.0,1.18894623]
[1732979607679,0.1051732,96668.0,96667.0,1.19094623]
[1732979608655,0.1051732,96668.0,96667.0,1.18994623]
[1732979608893,0.1051732,96668.0,96667.0,1.14164623]
[1732979609132,0.1051732,96668.0,96667.0,1.14264623]
[1732979609618,0.1051732,96668.0,96667.0,1.12064623]
[1732979609826,0.1051732,96668.0,96667.0,1.12164623]
[1732979610506,0.1051732,96668.0,96667.0,1.11964623]
[1732979610757,0.1051732,96668.0,96667.0,1.14664623]
[1732979611272,0.1051732,96668.0,96667.0,1.14564623]
[1732979611501,0.1051732,96668.0,96667.0,1.14764623]
[1732979612458,0.1051732,96668.0,96667.0,1.14564623]
[1732979612693,0.1051732,96668.0,96667.0,1.14364623]
[1732979612930,0.1051732,96668.0,96667.0,1.14764623]
[1732979615279,0.8051732,96668.0,96667.0,1.14764623]
[1732979615746,0.1051732,96668.0,96667.0,1.14764623]
[1732979621523,0.1051732,96668.0,96667.0,1.14564623]
[1732979621743,0.1051732,96668.0,96667.0,1.14664623]
[1732979622228,0.1051732,96668.0,96667.0,1.14164623]
[1732979622453,0.1051732,96668.0,96667.0,1.14464623]
[1732979622670,0.1051732,96668.0,96667.0,1.14564623]
[1732979627307,0.1051732,96668.0,96667.0,1.14264623]
[1732979627789,0.1051732,96668.0,96667.0,1.14364623]
[1732979628218,0.1051732,96668.0,96667.0,1.14264623]
[1732979629088,0.1051732,96668.0,96667.0,1.14164623]
[1732979629305,0.1051732,96668.0,96667.0,1.14264623]
[1732979629524,0.1051732,96668.0,96667.0,1.14364623]
[1732979633673,0.0017272,96668.0,96667.0,1.14364623]
[1732979633866,0.1051732,96668.0,96667.0,1.14364623]
[1732979634575,0.1051732,96668.0,96667.0,1.14264623]
[1732979634805,0.1051732,96668.0,96667.0,1.14364623]
[1732979635650,0.1051732,96668.0,96667.0,1.14264623]
[1732979636085,0.1051732,96668.0,96667.0,1.14564623]
[1732979636296,0.1051732,96668.0,96667.0,1.14264623]
[1732979636532,0.1051732,96668.0,96667.0,1.14364623]
[1732979636981,0.1051732,96668.0,96667.0,1.14464623]
[1732979638970,0.0017272,96668.0,96667.0,1.14464623]
[1732979639188,0.1051732,96668.0,96667.0,1.14464623]
[1732979640922,0.2266732,96668.0,96667.0,1.14464623]
[1732979642280,0.2266732,96668.0,96667.0,1.12164623]
[1732979642980,0.2266732,96668.0,96667.0,1.12064623]
[1732979643395,0.2266732,96668.0,96667.0,1.11864623]
[1732979643609,0.2266732,96668.0,96667.0,1.12264623]
[1732979643832,0.2266732,96668.0,96667.0,1.12464623]
[1732979644266,0.2266732,96668.0,96667.0,1.12264623]
[1732979644476,0.2266732,96668.0,96667.0,1.11864623]
[1732979644686,0.2266732,96668.0,96667.0,1.11964623]
[1732979644899,0.2266732,96668.0,96667.0,1.12264623]
[1732979645130,0.2266732,96668.0,96667.0,1.01980102]
[1732979646013,0.2266732,96668.0,96667.0,1.29896102]
[1732979646459,0.2266732,96668.0,96667.0,1.01980102]
[1732979647407,0.9366732,96668.0,96667.0,1.0048635]
[1732979647627,0.9366732,96668.0,96667.0,1.01730357]
[1732979647842,0.9366732,96668.0,96667.0,0.99661357]
[1732979648082,0.9366732,96668.0,96667.0,0.91385357]
[1732979648296,0.95325865,96668.0,96667.0,0.91285357]
[1732979648728,0.95325865,96668.0,96667.0,0.82709357]
[1732979648977,0.95325865,96668.0,96667.0,0.80640357]
[1732979649655,0.95325865,96668.0,96667.0,0.76502357]
[1732979649868,0.95325865,96668.0,96667.0,0.70295357]
[1732979650760,0.95325865,96668.0,96667.0,0.62019357]
[1732979651821,0.95325865,96668.0,96667.0,0.57881357]
[1732979652047,0.97349401,96668.0,96667.0,0.51674357]
[1732979652753,0.97349401,96668.0,96667.0,0.49605357]
[1732979653197,0.97349401,96668.0,96667.0,0.41329357]
[1732979653641,0.97349401,96668.0,96667.0,0.39260357]
[1732979653868,0.97349401,96668.0,96667.0,0.33053357]
[1732979654114,0.97349401,96668.0,96667.0,0.26251314]
[1732979656410,0.95325865,96668.0,96667.0,0.26251314]
[1732979656863,0.25325865,96668.0,96667.0,0.25007307]
[1732979657308,0.25325865,96668.0,96667.0,0.26251314]
[1732979659170,0.25325865,96668.0,96667.0,0.25751314]
[1732979660886,0.95325865,96668.0,96667.0,0.25751314]
[1732979662432,0.97439855,96668.0,96667.0,0.25751314]
[1732979666505,0.8263131,96668.0,96667.0,0.25751314]
[1732979669903,0.8263131,96668.0,96667.0,0.43915835]
[1732979669904,0.1263131,96668.0,96667.0,0.43915835]
[1732979670408,0.0228671,96668.0,96667.0,0.46215835]
[1732979670640,0.1051732,96668.0,96667.0,0.46215835]
[1732979671384,0.0017272,96668.0,96667.0,0.46215835]
[1732979671622,0.1051732,96668.0,96667.0,0.46215835]
[1732979671857,0.1051732,96668.0,96667.0,0.46315835]
[1732979672568,0.1051732,96668.0,96667.0,0.46415835]
[1732979673004,0.1051732,96668.0,96667.0,0.46815835]
[1732979674792,0.0017272,96668.0,96667.0,0.46815835]
[1732979675008,0.1051732,96668.0,96667.0,0.46815835]
[1732979678870,0.1051732,96668.0,96667.0,0.38935835]
[1732979679519,0.10700388,96668.0,96667.0,0.36635835]
[1732979679734,0.10700388,96668.0,96667.0,0.26351314]
[1732979679974,0.1051732,96668.0,96667.0,0.26351314]
[1732979680201,0.1051732,96668.0,96667.0,0.25751314]
[1732979680633,0.1051732,96668.0,96667.0,0.25851314]
[1732979684453,0.1051732,96668.0,96667.0,0.25751314]
[1732979684672,0.1051732,96668.0,96667.0,0.25851314]
[1732979685106,0.1051732,96668.0,96667.0,0.25751314]
[1732979686613,0.1051732,96668.0,96667.0,0.25851314]
[1732979686824,0.1051732,96668.0,96667.0,0.25751314]
[1732979687235,0.1051732,96668.0,96667.0,0.26051314]
[1732979687651,0.1051732,96668.0,96667.0,0.26151314]
[1732979688698,0.12593224,96668.0,96667.0,0.26151314]
[1732979691414,0.1051732,96668.0,96667.0,0.26151314]
[1732979691703,0.1051732,96668.0,96667.0,0.36435835]
[1732979692655,0.1051732,96668.0,96667.0,0.36335835]
[1732979693329,0.1051732,96668.0,96667.0,0.36035835]
[1732979694063,0.1051732,96668.0,96667.0,0.36135835]
[1732979694298,0.1051732,96668.0,96667.0,0.36535835]
[1732979694735,0.1051732,96668.0,96667.0,0.63856575]
[1732979694945,0.1051732,96668.0,96667.0,0.36035835]
[1732979695595,0.1051732,96668.0,96667.0,0.36135835]
[1732979696036,0.1051732,96668.0,96667.0,0.63957377]
[1732979696256,0.1051732,96668.0,96667.0,0.63957545]
[1732979696930,0.1051732,96668.0,96667.0,0.36135835]
[1732979697141,0.12180933,96668.0,96667.0,0.36135835]
[1732979697381,0.12180933,96668.0,96667.0,0.36335835]
[1732979697595,0.12180933,96668.0,96667.0,0.36035835]
[1732979697816,0.12180933,96668.0,96667.0,0.36135835]
[1732979698528,0.12364001,96668.0,96667.0,0.36135835]
[1732979698954,0.12364001,96668.0,96667.0,0.36035835]
[1732979699395,0.14455011,96668.0,96667.0,0.25851314]
[1732979699602,0.14271943,96668.0,96667.0,0.25851314]
[1732979699812,0.14271943,96668.0,96667.0,0.25751314]
[1732979700265,0.14271943,96668.0,96667.0,0.26051314]
[1732979701168,0.14271943,96668.0,96667.0,0.25751314]
[1732979701378,0.12180933,96668.0,96667.0,0.25751314]
[1732979701588,0.1051732,96668.0,96667.0,0.25851314]
[1732979702926,0.1051732,96668.0,96667.0,0.36135835]
[1732979703152,0.1051732,96668.0,96667.0,0.46185835]
[1732979703845,0.1051732,96668.0,96667.0,0.46085835]
[1732979704070,0.1051732,96668.0,96667.0,0.38335835]
[1732979704293,0.12364355,96668.0,96667.0,0.25951314]
[1732979704512,0.12364355,96668.0,96667.0,0.25751314]
[1732979704791,0.24644355,96668.0,96667.0,0.25751314]
[1732979705014,0.24461287,96668.0,96667.0,0.25951314]
[1732979705259,0.24461287,96668.0,96667.0,0.25751314]
[1732979707465,0.19921287,96668.0,96667.0,0.25751314]
[1732979707674,0.1051732,96668.0,96667.0,0.25751314]
[1732979708124,0.126373,96668.0,96667.0,0.25751314]
[1732979709289,0.14301563,96668.0,96667.0,0.25751314]
[1732979709503,0.14484631,96668.0,96667.0,0.25751314]
[1732979709944,0.14301563,96668.0,96667.0,0.25751314]
[1732979711464,0.12364651,96668.0,96667.0,0.25751314]
[1732979713366,0.25644651,96668.0,96667.0,0.25751314]
[1732979713591,0.25461583,96668.0,96667.0,0.25751314]
[1732979714916,0.24461583,96668.0,96667.0,0.25751314]
[1732979715139,0.25461583,96668.0,96667.0,0.25751314]
[1732979718062,0.26542497,96668.0,96667.0,0.25751314]
[1732979718729,0.22002497,96668.0,96667.0,0.25751314]
[1732979719602,0.23002497,96668.0,96667.0,0.25751314]
[1732979720067,0.22002497,96668.0,96667.0,0.25751314]
[1732979721652,0.19921583,96668.0,96667.0,0.25751314]
[1732979722091,0.12181583,96668.0,96667.0,0.25751314]
[1732979722876,0.13181583,96668.0,96667.0,0.25751314]
[1732979723078,0.13364651,96668.0,96667.0,0.25751314]
[1732979724345,0.21364651,96668.0,96667.0,0.25751314]
[1732979724579,0.25904651,96668.0,96667.0,0.25751314]
[1732979724833,0.37006104,96668.0,96667.0,0.15406114]
[1732979725044,0.113468,96648.0,96647.0,0.0018467]
[1732979725261,0.24069868,96648.0,96647.0,0.0018467]
[1732979725484,0.25551364,96648.0,96647.0,0.0008636]
[1732979725931,0.95551364,96648.0,96647.0,0.0008636]
[1732979727725,0.94551364,96648.0,96647.0,0.0008636]
[1732979728140,0.883468,96648.0,96647.0,0.0008636]
[1732979728360,0.804468,96648.0,96647.0,0.0008636]
[1732979730074,0.104468,96648.0,96647.0,0.0008636]
[1732979730289,0.10629868,96648.0,96647.0,0.0008636]
[1732979730764,0.10529868,96648.0,96647.0,0.0008636]
[1732979731197,0.10729868,96648.0,96647.0,0.0008636]
[1732979731641,0.10529868,96648.0,96647.0,0.0028636]
[1732979732073,0.10529868,96648.0,96647.0,0.0008636]
[1732979732287,0.103468,96648.0,96647.0,0.0008636]
[1732979732702,0.103468,96648.0,96647.0,0.0038636]
[1732979732914,0.10529868,96648.0,96647.0,0.0038636]
[1732979733124,0.10529868,96648.0,96647.0,0.0048636]
[1732979733330,0.10529868,96648.0,96647.0,0.0018636]
[1732979733531,0.10529868,96648.0,96647.0,0.0008636]
[1732979733939,0.10529868,96648.0,96647.0,0.0018636]
[1732979734807,0.10529868,96648.0,96647.0,0.0038636]
[1732979735014,0.103468,96648.0,96647.0,0.38554185]
[1732979735235,0.103468,96648.0,96647.0,0.39407102]
[1732979735463,0.20691,96661.0,96647.0,0.24093798]
[1732979735733,0.30558922,96670.0,96648.0,0.53755962]
[1732979735734,0.09869922,96670.0,96648.0,0.53755962]
[1732979735959,0.09869922,96660.0,96655.0,0.41110004]
[1732979736194,0.103459,96656.0,96655.0,0.41110004]
[1732979736426,0.02092265,96656.0,96654.0,0.41110004]
[1732979736678,0.103468,96648.0,96647.0,0.0008636]
[1732979736884,0.103468,96648.0,96647.0,0.10370881]
[1732979739708,0.02192265,96656.0,96647.0,0.10570881]
[1732979739925,0.0008637,96667.0,96653.0,0.023]
[1732979740135,0.103459,96656.0,96655.0,0.071]
[1732979740377,0.103459,96656.0,96655.0,0.58505774]
[1732979740599,0.103459,96656.0,96655.0,0.25154521]
[1732979741281,0.103459,96656.0,96655.0,0.26203902]
[1732979743318,0.103459,96656.0,96655.0,0.26303902]
[1732979743549,0.103459,96656.0,96655.0,0.13733902]
[1732979744017,0.103459,96656.0,96655.0,0.13633902]
[1732979744463,0.103459,96656.0,96655.0,0.13733902]
[1732979745860,0.103459,96656.0,96655.0,0.13633902]
[1732979746331,0.103459,96656.0,96655.0,0.14233902]
[1732979751829,0.103459,96656.0,96655.0,0.14406602]
[1732979753722,0.103459,96656.0,96655.0,1.14406602]
[1732979755544,0.01076865,96715.0,96655.0,1.14406602]
[1732979755545,0.206889,96670.0,96655.0,1.14406602]
[1732979755779,0.10345,96665.0,96663.0,0.41136142]
[1732979756012,0.206889,96670.0,96666.0,0.023]
[1732979756275,0.105173,96669.0,96666.0,0.12584521]
[1732979756530,0.001727,96669.0,96666.0,0.12584521]
[1732979756754,0.1043107,96667.0,96666.0,0.12584521]
[1732979756969,0.1043107,96667.0,96666.0,0.13628378]
[1732979756970,0.0018637,96667.0,96666.0,0.13628378]
[1732979757186,0.0018637,96667.0,96666.0,0.13662256]
[1732979757187,0.1053107,96667.0,96666.0,0.13662256]
[1732979757633,0.1043107,96667.0,96666.0,0.13662256]
[1732979757840,0.1043107,96667.0,96666.0,0.13762256]
[1732979760669,0.0008637,96667.0,96666.0,0.13762256]
[1732979761708,0.0008637,96667.0,96666.0,0.18422256]
[1732979762065,0.0008637,96667.0,96666.0,0.28767056]
[1732979762267,0.0008637,96667.0,96666.0,0.18422256]
[1732979763042,0.0008637,96667.0,96666.0,0.28767056]
[1732979763470,0.0008637,96667.0,96666.0,0.43767056]
[1732979763872,0.0008637,96667.0,96666.0,0.52027056]
[1732979764073,0.0008637,96667.0,96666.0,0.55094595]
[1732979764301,0.0008637,96667.0,96666.0,0.44749795]
[1732979764722,0.0008637,96667.0,96666.0,0.44649795]
[1732979764944,0.0008637,96667.0,96666.0,0.54994595]
[1732979765148,0.0008637,96667.0,96666.0,0.55894595]
[1732979765357,0.0008637,96667.0,96666.0,0.52827056]
[1732979765789,0.0008637,96667.0,96666.0,0.53527056]
[1732979766214,0.0008637,96667.0,96666.0,0.43182256]
[1732979766421,0.0008637,96667.0,96666.0,0.51927056]
[1732979766794,0.0008637,96667.0,96666.0,0.53027056]
[1732979769814,0.0008637,96667.0,96666.0,0.54128526]
[1732979770541,0.0008637,96667.0,96666.0,0.57193755]
[1732979771175,0.32054536,96700.0,96666.0,0.47848955]
[1732979771176,0.0008636,96698.0,96666.0,0.47848955]
[1732979771388,0.0017871,96688.0,96687.0,0.35847121]
[1732979771593,0.0017871,96688.0,96687.0,0.50847121]
[1732979772009,0.0017871,96688.0,96687.0,0.41533746]
[1732979772212,0.0017871,96688.0,96687.0,0.41567624]
[1732979772419,0.0017871,96688.0,96687.0,0.41567623]
[1732979773234,0.0017871,96688.0,96687.0,0.41767623]
[1732979773671,0.0017871,96688.0,96687.0,0.42167623]
[1732979773876,0.0017871,96688.0,96687.0,0.52510223]
[1732979774914,0.0017871,96688.0,96687.0,0.42167623]
[1732979775141,0.0017871,96688.0,96687.0,0.52510223]
[1732979775350,0.00170623,96688.0,96687.0,0.42167623]
[1732979775971,0.00170623,96688.0,96687.0,0.4216452]
[1732979779338,0.00170623,96688.0,96687.0,0.43281462]
[1732979780383,0.00170623,96688.0,96687.0,0.43281461]
[1732979780589,0.10513123,96688.0,96687.0,0.30361461]
[1732979780997,0.10513123,96688.0,96687.0,0.71324592]
[1732979781193,0.10513123,96688.0,96687.0,0.30361461]
[1732979781432,0.10513123,96688.0,96687.0,0.71324592]
[1732979781642,0.10513123,96688.0,96687.0,0.30361461]
[1732979782039,0.10513123,96688.0,96687.0,0.29244519]
[1732979782493,0.10513123,96688.0,96687.0,0.14244519]
[1732979782726,0.10513123,96688.0,96687.0,0.11944519]
[1732979782867,0.24788362,96688.0,96687.0,0.11944519]
[1732979783262,0.24788362,96688.0,96687.0,0.01659998]
[1732979783490,0.24788362,96688.0,96687.0,0.01259998]
[1732979783702,0.24788362,96688.0,96687.0,0.01459998]
[1732979783918,0.24788362,96688.0,96687.0,0.01457062]
[1732979784123,0.24788362,96688.0,96687.0,0.01057062]
[1732979784325,0.24788362,96688.0,96687.0,0.01357062]
[1732979785213,0.24788362,96688.0,96687.0,0.01657062]
[1732979785645,0.24788362,96688.0,96687.0,0.01357062]
[1732979786058,0.24788362,96688.0,96687.0,0.01257062]